[Event "Czech Extraliga 2024-25"]
[Site "Czechia"]
[Date "2024.11.03"]
[Round "2.1"]
[White "Eljanov, Pavel"]
[Black "Delgerdalai, Bayarjavkhlan"]
[Result "1/2-1/2"]
[ECO "A14"]
[WhiteElo "2672"]
[BlackElo "2347"]
[Annotator "TA"]
[PlyCount "114"]
[EventDate "2024.09.12"]
[EventType "team-tourn"]
[EventCountry "CZE"]
[SourceTitle "playchess.com"]
[Source "ChessBase"]
[SourceQuality "1"]
[TimeControl "40/5400+30:1800+30"]

{[%evp 15,114,18,42,39,35,35,35,9,12,10,33,29,47,38,53,36,21,12,29,19,35,19,33,24,35,11,25,27,31,-9,-11,-13,-12,-12,-13,-25,-33,-31,-27,-38,-58,-101,-86,-106,-73,-89,-89,-107,-66,-82,-58,-47,-48,-58,-19,-13,0,-40,0,-11,-11,-14,0,0,0,0,241,0,0,0,0,0,0,0,0,-7,0,0,0,-35,20,0,18,0,14,0,0,6,24,0,0,0,0,0,0,0,0,0,0,0,0]} 1. Nf3 {[%emt 0:00:04]} Nf6 {[%emt 0:00:39]} 2. c4 {[%emt 0:00:32]} e6 {[%emt 0:00:26]} 3. g3 {[%emt 0:00:23]} d5 {[%emt 0:00:30]} 4. Bg2 {[%emt 0:00:29]} Be7 {[%emt 0:01:25]} 5. O-O {[%emt 0:01:28]} O-O {[%emt 0:00:09]} 6. b3 {[%emt 0:00:18]} c6 {[%emt 0:01:38]} 7. Bb2 {[%emt 0:12:54]} Nbd7 {[%emt 0:08:43]} 8. d3 {[%emt 0:03:41]} b6 {[%emt 0:06:36] [#]} 9. e4 $1 {[%emt 0:00:32][%cal Be2e4,Be4e5][%mdl 32]} Bb7 {[%emt 0:01:36]} 10. e5 {[%emt 0:07:12]} Ne8 {[%emt 0:00:35]} 11. Re1 {[%emt 0:01:29] White is slightly better.} Nc7 {[%emt 0:07:35]} 12. Nc3 {[%emt 0:01:49]} Re8 {[%emt 0:07:46]} 13. h4 {[%emt 0:00:27]} Nf8 {[%emt 0:00:59]} 14. Qe2 {[%emt 0:02:37]} Qd7 {[%emt 0:02:06]} 15. h5 {[%emt 0:03:58][%cal Oh5h6]} h6 $1 {[%emt 0:02:55]} 16. Nh2 {[%emt 0:00:59]} Rad8 {[%emt 0:05:31]} 17. Rad1 {[%emt 0:01:39]} Nh7 {[%emt 0:01:27]} 18. Ng4 {[%emt 0:02:25]} Qc8 {[%emt 0:06:58]} 19. a3 {[%emt 0:07:05]} b5 {[%emt 0:04:21]} 20. cxd5 {[%emt 0:04:53]} cxd5 {[%emt 0:01:15]} 21. Rc1 {[%emt 0:05:54][%cal Oc3b5]} Qd7 {[%emt 0:03:19]} 22. b4 {[%emt 0:03:10] [#]} a5 $1 {[%emt 0:07:21]} 23. bxa5 {[%emt 0:02:32]} Ra8 {[%emt 0:06:29]} 24. Qd2 {[%emt 0:12:35]} b4 {[%emt 0:00:43]} 25. Nb1 {[%emt 0:00:35]} Rxa5 {[%emt 0:02:11]} 26. axb4 {[%emt 0:00:21]} Ra4 {[%emt 0:03:59][%cal Oc7b5]} 27. Qd1 {[%emt 0:10:47][%cal Oc1c7] Black must now prevent Rxc7!} Rea8 {[%emt 0:02:52]} 28. f4 {[%emt 0:01:41] [#]} Nb5 $1 {[%emt 0:07:10]} (28... Rxb4 29. Ba3 Rb6 30. Bxe7 Qxe7 31. d4) (28... Bxb4 29. Re3 $15) 29. Nd2 {[%emt 0:05:55]} Rxb4 {[%emt 0:00:57]} ({Much less strong is} 29... Bxb4 30. Re2 $15) 30. Ba1 {[%emt 0:00:38]} Ra3 {[%emt 0:02:16]} 31. Nf2 {[%emt 0:00:11]} Bd8 {[%emt 0:02:50][%cal Be7d8,Bd8a5,Ba5c3][%mdl 32]} 32. Rb1 {[%emt 0:00:44]} Rxb1 {[%emt 0:00:21]} 33. Qxb1 {[%emt 0:00:01]} Ba5 {[%emt 0:00:53]} 34. Rd1 {[%emt 0:00:59]} Nc3 {[%emt 0:01:28]} (34... Bc6 $5 35. Bb2 Nc3 36. Bxc3 Bxc3 $11) 35. Bxc3 {[%emt 0:00:19]} Rxc3 {[%emt 0:01:03]} 36. Qb2 {[%emt 0:05:10]} (36. Nc4 $5 dxc4 37. dxc4 $17) 36... Rc7 {[%emt 0:00:53]} 37. Rb1 {[%emt 0:01:41]} Bc3 {[%emt 0:00:25]} 38. Qa2 {[%emt 0:00:02]} Nf8 {[%emt 0:00:33]} 39. Nf3 {[%emt 0:00:19]} Qe7 {[%emt 0:00:31]} 40. d4 {[%emt 0:01:02]} Rc4 $2 {[%emt 0:00:27]} (40... Bc6 $11 {and Black stays safe.}) 41. Qa7 $2 {[%emt 0:08:25]} ({Only move:} 41. Bf1 $18) 41... Rb4 $11 {[%emt 0:07:21]} 42. Rc1 {[%emt 0:00:47]} Rc4 {[%emt 0:03:51][%cal Oc3d4] And now ...Bxd4! would win.} 43. Nd3 {[%emt 0:03:15]} Qc7 {[%emt 0:04:22][%cal Oc3d4]} 44. Kh2 {[%emt 0:09:38] aiming for Nc5.} Bc8 {[%emt 0:05:53]} 45. Qa8 {[%emt 0:01:40]} Bb7 {[%emt 0:04:39]} ({Don't play} 45... Bxd4 $6 46. Nxd4 Rxc1 47. Nxc1 Qxc1 48. Nc6 $16) 46. Qa3 {[%emt 0:01:09]} Qa5 {[%emt 0:03:17]} 47. Qe7 {[%emt 0:01:58]} Qc7 {[%emt 0:02:21]} (47... Bc8 $15) 48. Qd6 {[%emt 0:00:58]} Rc6 {[%emt 0:01:09]} 49. Qa3 {[%emt 0:00:40]} Qa5 {[%emt 0:01:06] Against Nc5} 50. Qb3 {[%emt 0:00:24][%cal Od3c5] Strongly threatening Nc5!} (50. Qxa5 {simplifies} Bxa5 51. Ra1 Bc3 52. Ra3) 50... Ba6 {[%emt 0:00:51]} 51. Bf1 {[%emt 0:02:56]} (51. Nb4 $5 Rb6 $8 52. Qxc3 Qxb4 53. Qxb4 Rxb4 54. Bf1 $11) 51... Qc7 {[%emt 0:00:33]} 52. Nc5 {[%emt 0:00:48]} Bxf1 {[%emt 0:00:32] The position is equal.} 53. Qxc3 {[%emt 0:00:27]} Be2 {[%emt 0:00:28]} 54. Qe3 {[%emt 0:02:05]} Bxf3 {[%emt 0:00:22]} 55. Qxf3 {[%emt 0:00:02]} Nd7 {[%emt 0:00:24]} 56. Ra1 {[%emt 0:00:52]} Qc8 {[%emt 0:00:55] Prevents Ra8} 57. Nxd7 {[%emt 0:01:52]} Qxd7 {[%emt 0:00:05] Weighted Error Value: White=0.14 (very precise) /Black=0.17 (very precise) .  Loses game:     	---       	Black=1      Missed win:     	White=1     	---        Mistake:       	---       	Black=1      Inaccurate:     	White=5     	Black=3      OK:         	White=13    	Black=21     Best:        	White=1     	---        Strong:       	---       	Black=2} 1/2-1/2

[Event "Czech Extraliga 2024-25"]
[Site "Czechia"]
[Date "2024.11.03"]
[Round "2.1"]
[White "Ivanchuk, Vasyl"]
[Black "Navara, David"]
[Result "1/2-1/2"]
[ECO "D38"]
[WhiteElo "2640"]
[BlackElo "2674"]
[Annotator "TA"]
[PlyCount "82"]
[EventDate "2024.09.12"]
[EventType "team-tourn"]
[EventCountry "CZE"]
[SourceTitle "playchess.com"]
[Source "ChessBase"]
[SourceQuality "1"]
[TimeControl "40/5400+30:1800+30"]

{[%evp 22,82,5,14,11,18,15,15,18,14,19,8,15,13,18,13,9,9,14,0,0,0,9,8,7,6,9,7,11,0,0,0,0,0,0,0,0,0,0,0,0,0,0,0,0,0,0,0,0,0,0,0,0,0,0,0,0,0,0,0,0,0,0]} 1. d4 {[%emt 0:00:03]} Nf6 {[%emt 0:00:04]} 2. c4 {[%emt 0:00:03]} e6 {[%emt 0:00:05]} 3. Nf3 {[%emt 0:00:35]} d5 {[%emt 0:00:05]} 4. Nc3 {[%emt 0:01:52]} Bb4 {[%emt 0:00:12]} 5. Bg5 {[%emt 0:00:05]} h6 {[%emt 0:00:11]} 6. Bxf6 {[%emt 0:00:21]} Qxf6 {[%emt 0:00:11]} 7. Qb3 {[%emt 0:00:22]} c5 {[%emt 0:00:26]} 8. cxd5 {[%emt 0:00:05]} exd5 {[%emt 0:00:17]} 9. e3 {[%emt 0:00:06]} O-O {[%emt 0:01:04]} 10. dxc5 {[%emt 0:00:05]} Bxc3+ {[%emt 0:00:13]} 11. Qxc3 {[%emt 0:00:07]} Qxc3+ {[%emt 0:00:09]} 12. bxc3 {[%emt 0:00:03] The position is equal.} Nd7 {[%emt 0:00:15]} 13. Rd1 {[%emt 0:00:06]} Nf6 {[%emt 0:01:31]} 14. Nd4 {[%emt 0:00:15]} Bd7 {[%emt 0:00:40]} 15. f3 {[%emt 0:00:27]} Rfc8 {[%emt 0:01:17]} 16. Nb3 {[%emt 0:00:06]} Ba4 {[%emt 0:00:24]} 17. Rd4 {[%emt 0:00:05]} Bxb3 {[%emt 0:00:06]} 18. axb3 {[%emt 0:00:03]} Rxc5 {[%emt 0:00:09]} 19. Kd2 {[%emt 0:00:06]} Ra5 {[%emt 0:01:58]} 20. Bd3 {[%emt 0:00:23]} Ra2+ {[%emt 0:02:18]} 21. Bc2 {[%emt 0:00:02]} Rc8 {[%emt 0:00:57]} 22. Ra4 {[%emt 0:15:17]} Rxa4 {[%emt 0:00:19]} 23. bxa4 $11 {[%emt 0:00:01][%mdl 4096] Endgame. KRB-KRN} Rc5 {[%emt 0:01:45]} 24. Rb1 {[%emt 0:02:57]} b6 {[%emt 0:00:11]} 25. Rb4 {[%emt 0:05:21]} Kf8 {[%emt 0:03:30]} 26. Bb3 {[%emt 0:01:54]} Ne8 {[%emt 0:06:21]} 27. Rd4 {[%emt 0:11:06]} Nc7 {[%emt 0:00:37]} 28. g4 {[%emt 0:00:07]} g5 {[%emt 0:03:30]} 29. h3 {[%emt 0:15:42]} Ke7 {[%emt 0:01:09]} 30. c4 {[%emt 0:00:08]} dxc4 {[%emt 0:04:56]} 31. Bxc4 {[%emt 0:00:16]} b5 {[%emt 0:01:38]} 32. Re4+ {[%emt 0:03:25]} Kf8 {[%emt 0:02:14]} 33. axb5 {[%emt 0:02:11]} Nxb5 {[%emt 0:00:19]} 34. Bxb5 {[%emt 0:00:01]} Rxb5 {[%emt 0:00:09] KR-KR} 35. Rc4 {[%emt 0:00:04]} Rb2+ {[%emt 0:02:41]} 36. Kd3 {[%emt 0:00:07]} Rh2 {[%emt 0:00:14]} 37. Ra4 {[%emt 0:00:51]} Rxh3 {[%emt 0:00:04]} 38. Ke2 {[%emt 0:05:38]} h5 {[%emt 0:00:32]} 39. gxh5 {[%emt 0:00:17]} Rxh5 {[%emt 0:00:05]} 40. Rxa7 {[%emt 0:00:08]} Rh2+ {[%emt 0:00:03]} 41. Kf1 {[%emt 0:30:25]} Kg7 {[%emt 0:30:04] An uneventful encounter.   Weighted Error Value: White=0.01 (flawless) /Black=0.00 (flawless) .  OK:         	White=10    	Black=23     Best:        	White=1     	---} 1/2-1/2

[Event "Czech Extraliga 2024-25"]
[Site "Czechia"]
[Date "2024.11.03"]
[Round "2.1"]
[White "Rodshtein, Maxim"]
[Black "Ter-Sahakyan, Samvel"]
[Result "1/2-1/2"]
[ECO "D77"]
[WhiteElo "2636"]
[BlackElo "2608"]
[Annotator "TA"]
[PlyCount "126"]
[EventDate "2024.09.12"]
[EventType "team-tourn"]
[EventCountry "CZE"]
[SourceTitle "playchess.com"]
[Source "ChessBase"]
[SourceQuality "1"]
[TimeControl "40/5400+30:1800+30"]

{[%evp 52,126,134,144,124,4,18,12,22,0,0,0,63,66,88,81,81,81,88,88,88,77,77,77,77,77,75,75,88,88,88,88,97,0,88,88,88,71,88,88,88,88,87,88,98,71,71,71,71,71,71,71,71,71,71,71,71,71,71,71,71,71,71,60,60,60,60,60,60,60,60,8,8,8,8,0,0]} 1. Nf3 {[%emt 0:00:07]} d5 {[%emt 0:00:24]} 2. g3 {[%emt 0:00:18]} g6 {[%emt 0:01:47]} 3. Bg2 {[%emt 0:00:22]} Bg7 {[%emt 0:00:05]} 4. d4 {[%emt 0:00:29]} Nf6 {[%emt 0:00:10]} 5. O-O {[%emt 0:01:59]} O-O {[%emt 0:00:08]} 6. c4 {[%emt 0:00:21]} dxc4 {[%emt 0:00:07]} 7. Na3 {[%emt 0:00:21]} c3 {[%emt 0:00:16]} 8. bxc3 {[%emt 0:00:08]} c5 {[%emt 0:00:05]} 9. Bb2 {[%emt 0:02:24] D77: Fianchetto Grünfeld: 6 0-0: Replies other than 6...c6.} Nc6 {[%emt 0:00:36]} 10. Re1 $1 {[%emt 0:00:41] The main line 10.Re1 scores better than 10.e3.} Qb6 {[%emt 0:01:09]} 11. Nc4 {[%emt 0:01:39]} Qb5 {[%emt 0:00:31]} 12. Qb3 {[%emt 0:00:48]} Qa6 {[%emt 0:00:31]} 13. Ne3 {[%emt 0:13:07]} Rd8 $146 {[%emt 0:28:26]} ({Predecessor:} 13... Be6 14. Qa3 Qxa3 15. Bxa3 Rfd8 16. Ng5 cxd4 17. Nxe6 fxe6 18. cxd4 Rxd4 19. Rab1 Rd7 20. Rxb7 Rxb7 21. Bxc6 {½-½ Theodorou,N (2566)-Sorokin,A (2521) Las Vegas National op 2021 (4)}) 14. Ng5 {[%emt 0:11:32]} e6 {[%emt 0:04:46]} 15. dxc5 {[%emt 0:08:04]} Bd7 {[%emt 0:30:28]} 16. c4 {[%emt 0:11:22]} b6 {[%emt 0:19:12]} 17. cxb6 {[%emt 0:06:30]} axb6 {[%emt 0:01:29]} 18. Red1 {[%emt 0:15:03]} Be8 {[%emt 0:00:49]} 19. Rxd8 {[%emt 0:07:15]} Rxd8 {[%emt 0:00:04]} 20. Bc3 {[%emt 0:00:44]} Nd4 {[%emt 0:01:57]} 21. Qb2 {[%emt 0:00:59]} e5 {[%emt 0:00:16]} 22. a4 {[%emt 0:06:03]} h6 {[%emt 0:03:29]} 23. Ne4 {[%emt 0:00:27]} Nxe4 {[%emt 0:00:12]} 24. Bxe4 {[%emt 0:00:06]} Kh7 {[%emt 0:00:06]} 25. Kf1 {[%emt 0:02:29]} Bd7 {[%emt 0:01:47]} 26. h4 {[%emt 0:04:11]} h5 {[%emt 0:01:57]} 27. Bd5 {[%emt 0:02:01]} Qa7 {[%emt 0:02:28]} 28. Nc2 {[%emt 0:01:50]} (28. Bxf7 $2 Bh3+ (28... Bxa4 $2 29. Bd5 $18) 29. Kg1 Qxf7 $19) (28. a5 $16 b5 29. a6 (29. Bxf7 $2 Bh3+ 30. Kg1 Qxf7 $19)) 28... Bh3+ $11 {[%emt 0:00:25]} 29. Ke1 {[%emt 0:00:02]} Be6 {[%emt 0:00:39]} 30. Nxd4 {[%emt 0:03:07]} exd4 {[%emt 0:00:05]} 31. Bxd4 {[%emt 0:00:05]} Qa5+ {[%emt 0:00:47]} ({Black should try} 31... Bxd5 $11 32. Bxg7 (32. cxd5 Qa5+ 33. Kf1 Qxd5 $11) 32... Bxc4) 32. Kf1 $14 {[%emt 0:00:02]} Bxd4 {[%emt 0:00:42]} 33. Qxd4 {[%emt 0:00:05]} Bxd5 {[%emt 0:00:03]} 34. Kg1 {[%emt 0:02:14]} (34. cxd5 {simplifies} Qxd5 35. Qxd5 Rxd5 36. Rc1) 34... Rd7 {[%emt 0:00:43]} (34... Qb4 35. Rd1 Qxa4 36. cxd5 $16) 35. cxd5 {[%emt 0:00:07]} Rxd5 {[%emt 0:00:02]} 36. Qc4 {[%emt 0:00:56]} Qc5 {[%emt 0:00:25]} 37. Qb3 {[%emt 0:00:09]} Rf5 {[%emt 0:01:14]} 38. e3 {[%emt 0:00:06]} Qc6 {[%emt 0:00:36]} 39. Rb1 {[%emt 0:01:14]} Qf3 {[%emt 0:00:21]} 40. Qb2 {[%emt 0:00:29]} (40. Qxb6 Qxf2+ 41. Kh1 Qf3+ (41... Qxg3 42. Qb2 $19) 42. Kh2 Qe2+ 43. Kg1 Rf3 (43... Qf2+ $2 44. Kh1 $19) 44. Qc7 Qxe3+ (44... Qf2+ $2 45. Kh1 $19) 45. Kh1 Rf2 (45... Rxg3 46. Qxf7+ Kh6 47. Qf8+ Kh7 48. Rb7+) (45... Qe4 $2 46. Qb7 $19) (45... Rxg3 46. Qxf7+ Kh6 47. Qf8+ Kh7 48. Rb7+) (45... Qe4 46. Qb7 Rf1+ 47. Kh2 Qc2+ 48. Qg2 Qxb1 49. a5 Qe1 50. a6 Rf2 51. a7 Rxg2+ 52. Kxg2 Qe2+ 53. Kg1 Qf3 54. Kh2 Qf2+ 55. Kh1 Qxa7 56. Kg2 Qe3 57. Kf1 Kg7 58. Kg2 Qd2+ 59. Kh1 Qf2 60. g4 hxg4 61. h5 g3 62. h6+ Kf6 63. h7 Qh2#)) 40... Rf6 {[%emt 0:00:40]} 41. Qd2 {[%emt 0:04:03]} Qc6 {[%emt 0:07:13]} 42. Qb2 {[%emt 0:15:08]} (42. Rb4 $16) 42... Rd6 {[%emt 0:02:48]} (42... Qf3 $1 $11 {keeps the balance.}) 43. Qb3 $16 {[%emt 0:04:28]} Qf3 {[%emt 0:04:56]} 44. Qb4 {[%emt 0:01:58]} Rc6 {[%emt 0:02:56]} 45. Qd2 {[%emt 0:00:56]} Qf5 {[%emt 0:04:50]} 46. Rb5 {[%emt 0:01:34]} Qc8 {[%emt 0:00:59]} 47. Qd5 {[%emt 0:01:34]} Rc1+ {[%emt 0:03:02]} 48. Kg2 {[%emt 0:00:02]} Qc4 {[%emt 0:00:42]} 49. Qxc4 {[%emt 0:02:31]} Rxc4 {[%emt 0:00:04]} 50. Rxb6 {[%emt 0:00:05]} Rxa4 {[%emt 0:00:03]} 51. Kf3 {[%emt 0:00:13]} Kg7 {[%emt 0:01:35]} 52. e4 {[%emt 0:00:08]} Ra3+ {[%emt 0:02:33]} 53. Kf4 {[%emt 0:00:03]} Ra2 {[%emt 0:00:10]} 54. f3 {[%emt 0:00:06]} Ra4 {[%emt 0:01:17]} 55. Rb3 {[%emt 0:00:29]} Ra2 {[%emt 0:00:45]} 56. Rd3 {[%emt 0:00:46]} Re2 {[%emt 0:01:12]} 57. e5 {[%emt 0:00:30]} Ra2 {[%emt 0:01:37]} 58. Rd4 {[%emt 0:00:22]} Re2 {[%emt 0:01:02]} 59. Rd8 {[%emt 0:01:29]} Re1 {[%emt 0:00:36]} 60. Rd7 {[%emt 0:01:41]} Re2 {[%emt 0:00:20]} 61. g4 {[%emt 0:00:15]} (61. Rd4 $14) 61... hxg4 $11 {[%emt 0:00:13]} 62. fxg4 {[%emt 0:00:03]} Re1 {[%emt 0:00:48]} 63. g5 {[%emt 0:03:06]} Kf8 {[%emt 0:00:50]} 1/2-1/2

[Event "Czech Extraliga 2024-25"]
[Site "Czechia"]
[Date "2024.11.03"]
[Round "2.1"]
[White "Teclaf, Pawel"]
[Black "Pechac, Jergus"]
[Result "1/2-1/2"]
[ECO "C67"]
[WhiteElo "2568"]
[BlackElo "2598"]
[Annotator "TA"]
[PlyCount "29"]
[EventDate "2024.09.12"]
[EventType "team-tourn"]
[EventCountry "CZE"]
[SourceTitle "playchess.com"]
[Source "ChessBase"]
[SourceQuality "1"]
[TimeControl "40/5400+30:1800+30"]

{[%evp 18,29,20,22,22,17,15,19,26,33,29,11,20,24]} 1. e4 {[%emt 0:00:08]} e5 {[%emt 0:10:05]} 2. Nf3 {[%emt 0:00:06]} Nc6 {[%emt 0:00:03]} 3. Bb5 {[%emt 0:00:05]} Nf6 {[%emt 0:00:06]} 4. O-O {[%emt 0:05:39][%cal Bh1f1,Bf1e1,Be1e5][%mdl 32]} Nxe4 {[%emt 0:00:04]} 5. Re1 {[%emt 0:00:11]} Nd6 {[%emt 0:00:05]} 6. Nxe5 {[%emt 0:02:27]} Be7 {[%emt 0:00:06]} 7. Bf1 {[%emt 0:00:04]} Nxe5 {[%emt 0:00:06]} 8. Rxe5 {[%emt 0:00:06]} O-O {[%emt 0:00:03]} 9. d4 {[%emt 0:03:52]} Bf6 {[%emt 0:00:06]} 10. Re1 {[%emt 0:00:08]} Re8 {[%emt 0:00:05]} 11. c3 {[%emt 0:02:44]} Rxe1 {[%emt 0:00:08]} 12. Qxe1 {[%emt 0:00:04]} Qe7 {[%emt 0:00:20]} 13. Qxe7 {[%emt 0:01:29]} Bxe7 {[%emt 0:00:04]} 14. Bf4 {[%emt 0:00:06]} g5 {[%emt 0:00:03]} 15. Bg3 {[%emt 0:01:29] A rather calm draw.   Weighted Error Value: White=0.01 (flawless) /Black=0.02 (flawless) .  OK:         	White=3     	Black=1} 1/2-1/2

[Event "Czech Extraliga 2024-25"]
[Site "Czechia"]
[Date "2024.11.03"]
[Round "2.1"]
[White "Svanda, Ondrej"]
[Black "Saric, Ivan"]
[Result "0-1"]
[ECO "B80"]
[WhiteElo "2391"]
[BlackElo "2668"]
[Annotator "TA"]
[PlyCount "84"]
[EventDate "2024.09.12"]
[EventType "team-tourn"]
[EventCountry "CZE"]
[SourceTitle "playchess.com"]
[Source "ChessBase"]
[SourceQuality "1"]
[TimeControl "40/5400+30:1800+30"]

{[%evp 11,84,25,24,16,28,26,25,0,0,0,0,0,0,10,9,0,28,24,12,0,0,0,0,0,0,0,47,45,77,26,3,8,15,30,36,38,33,40,33,34,46,0,0,0,0,0,0,0,11,0,0,-25,-22,-12,-16,-39,-71,-61,-70,-119,-127,-123,-121,-261,-265,-263,-257,-465,-493,-342,-316,-2216,-2195,-1878,-1531]} 1. e4 {[%emt 0:00:02]} c5 {[%emt 0:00:05]} 2. Nf3 {[%emt 0:00:03]} d6 {[%emt 0:00:13]} 3. d4 {[%emt 0:00:03]} cxd4 {[%emt 0:00:03]} 4. Nxd4 {[%emt 0:00:03]} Nf6 {[%emt 0:00:05]} 5. Nc3 {[%emt 0:00:03]} a6 {[%emt 0:00:15]} 6. Be3 {[%emt 0:00:05]} e6 {[%emt 0:02:15][%cal Be7e6,Be6e5][%mdl 32]} 7. a3 {[%emt 0:00:04]} Nc6 {[%emt 0:00:42]} 8. Be2 {[%emt 0:03:21]} Be7 {[%emt 0:02:42]} 9. g4 {[%emt 0:13:13] White has an edge.} Nxd4 {[%emt 0:04:25]} 10. Qxd4 {[%emt 0:00:20]} e5 {[%emt 0:00:05]} 11. Qd1 {[%emt 0:00:24]} h6 {[%emt 0:02:16]} 12. Rg1 {[%emt 0:05:36]} Be6 {[%emt 0:00:19]} 13. Qd2 {[%emt 0:10:44]} Rc8 {[%emt 0:02:34][%cal Of6e4]} 14. O-O-O {[%emt 0:02:05]} Qa5 {[%emt 0:01:14]} 15. Kb1 {[%emt 0:09:11]} Rxc3 {[%emt 0:01:50]} 16. Qxc3 {[%emt 0:01:17]} Qxc3 {[%emt 0:00:04]} 17. bxc3 {[%emt 0:00:01]} Nxe4 {[%emt 0:00:08]} 18. Kb2 {[%emt 0:00:35]} d5 {[%emt 0:16:53]} (18... Kd7 $11) 19. Bf3 $1 $14 {[%emt 0:08:28][%cal Oc3c4]} b5 {[%emt 0:04:17]} 20. Bxe4 {[%emt 0:04:09]} (20. a4 $1 $16) 20... dxe4 $11 {[%emt 0:00:04]} 21. Ra1 {[%emt 0:02:06]} O-O {[%emt 0:05:37]} 22. a4 {[%emt 0:00:05]} b4 {[%emt 0:00:23]} 23. cxb4 {[%emt 0:04:20]} Bxb4 {[%emt 0:01:07]} 24. a5 {[%emt 0:01:02]} Rc8 {[%emt 0:09:33] Hoping for ...Bc3+.} 25. Ra4 {[%emt 0:07:00]} Rc4 {[%emt 0:01:38]} 26. Kb1 {[%emt 0:04:53]} (26. Rb1 $14 {should be considered.}) 26... Bd7 {[%emt 0:00:35]} 27. Ra2 {[%emt 0:00:48]} Bc3 {[%emt 0:01:31] Threatens to win with ...Rb4+.} 28. Kc1 {[%emt 0:01:52]} Be6 {[%emt 0:03:33] White must now prevent ...Rb4. This pair of bishops is nice.} 29. Ra3 $1 {[%emt 0:01:53]} Bb4 {[%emt 0:00:27]} 30. Ra2 {[%emt 0:01:02]} Kh7 {[%emt 0:02:33]} 31. h4 {[%emt 0:03:12] [#]} h5 $1 $36 {[%emt 0:07:25][%mdl 2048] White is under pressure.} 32. g5 {[%emt 0:02:08]} Kg6 {[%emt 0:02:16]} 33. Rd1 {[%emt 0:02:21]} f5 {[%emt 0:08:35] Strongly threatening ...f4.} 34. gxf6 {[%emt 0:02:19]} gxf6 {[%emt 0:00:04]} 35. Rd8 {[%emt 0:01:07] [#]} (35. Ra1 $15) 35... f5 $1 $17 {[%emt 0:00:23]} 36. Bd2 {[%emt 0:01:30] [#] Bxb4 is the strong threat.} Bc5 {[%emt 0:04:23] Black is more active.} 37. Ra8 {[%emt 0:02:55] This move loses the game for White.} (37. Be3 $17 Bb4 38. Bd2) 37... Bxf2 $19 {[%emt 0:00:21]} 38. Rxa6 {[%emt 0:00:02]} Kf7 {[%emt 0:00:06]} 39. Bg5 {[%emt 0:03:09]} (39. Rb2 e3 (39... Bxh4 $2 {loses.} 40. Rbb6 $18) 40. Rb7+ Kf6 41. Rb8 (41. Bb4 $2 Rxb4 42. Rxb4 e2 $19) 41... exd2+ 42. Kxd2) 39... Rc7 {[%emt 0:02:13]} (39... f4 $2 40. Rb2 Rc7 41. Rb4 $17) 40. Ra3 {[%emt 0:05:49]} f4 {[%emt 0:00:30] And now ...e3 would win.} 41. Rxe6 $2 {[%emt 0:03:54]} (41. Ra4 f3 (41... e3 42. Re4 $11) 42. Rxe4) 41... Kxe6 {[%emt 0:00:10]} 42. a6 {[%emt 0:00:02]} Rd7 {[%emt 0:01:34] Weighted Error Value: White=0.37/Black=0.05 (flawless) .  Mistake:       	White=6     	Black=1      Inaccurate:     	---       	Black=2      OK:         	White=12    	Black=17     Best:        	White=2     	Black=1      Strong:       	White=2     	Black=1} 0-1